bitfinex/quotes_SOLUSD_20241118
["timestamp","ask_amount","ask_price","bid_price","bid_amount"]
[1731904764866,4.1457,241.21,241.13,14.5149]
[1731904765187,9.90514192,241.18,241.13,14.5149]
[1731904766196,9.90514192,241.2,241.13,14.5149]
[1731904766562,9.90514192,241.2,241.13,24.42004192]
[1731904766877,9.90514192,241.2,241.13,14.5149]
[1731904767060,9.90514192,241.18,241.08,9.90514192]
[1731904767658,9.90514192,241.18,241.03,35.2644]
[1731904767860,9.90514192,241.18,241.08,9.90514192]
[1731904768284,9.90514192,241.16,241.08,9.90514192]
[1731904768966,9.90514192,241.19,241.11,9.90514192]
[1731904769366,9.90514192,241.19,241.09,24.42244192]
[1731904769778,9.90514192,241.17,241.09,10.3695]
[1731904769978,9.90514192,241.13,241.04,20.27664192]
[1731904770680,9.90514192,241.15,241.06,9.90514192]
[1731904770877,9.90514192,241.15,241.07,4.1481]
[1731904771078,9.90514192,241.15,241.07,14.5185]
[1731904771281,14.05204192,241.15,241.07,14.5185]
[1731904771502,9.90514192,241.13,241.07,14.5185]
[1731904772171,9.90514192,241.13,241.07,10.3704]
[1731904773779,9.90514192,241.15,241.07,10.3704]
[1731904773979,9.90514192,241.17,241.07,20.27554192]
[1731904774372,9.90514192,241.17,241.07,24.42364192]
[1731904774579,9.90514192,241.17,241.09,9.90514192]
[1731904774794,14.05164192,241.17,241.09,9.90514192]
[1731904775188,9.90514192,241.17,241.09,9.90514192]
[1731904776095,9.90514192,241.15,241.07,14.5185]
[1731904777591,9.90514192,241.13,241.07,10.3704]
[1731904778590,0.35098,241.18,241.07,10.3704]
[1731904778903,9.90514192,241.14,241.07,14.5185]
[1731904779287,14.05214192,241.14,241.07,14.5185]
[1731904780182,9.90514192,241.14,241.07,14.5185]
[1731904780703,9.90514192,241.14,241.07,14.26961]
[1731904780905,9.90514192,241.14,241.07,10.12151]
[1731904782006,9.90514192,241.15,241.07,10.12151]
[1731904786411,9.90514192,241.19,241.1,9.90514192]
[1731904786608,16.6327,241.26,241.1,9.90514192]
[1731904786797,9.90514192,241.18,241.1,9.90514192]
[1731904787303,9.90514192,241.16,241.07,10.12151]
[1731904787514,9.90514192,241.14,241.07,10.12151]
[1731904788012,9.90514192,241.12,241.07,10.12151]
[1731904788795,185.07,241.2,241.07,20.02665192]
[1731904789111,9.90514192,241.17,241.07,20.02665192]
[1731904789305,9.90514192,241.15,241.07,10.12151]
[1731904789792,9.90514192,241.15,241.05,14.05364192]
[1731904789985,9.90514192,241.13,241.03,9.90514192]
[1731904790182,9.90514192,241.13,241.03,14.05394192]
[1731904790405,14.05234192,241.13,241.03,24.42604192]
[1731904790609,0.12549,241.12,241.03,24.42604192]
[1731904791304,9.90514192,241.11,241.03,24.42604192]
[1731904791504,14.05264192,241.11,241.03,14.5209]
[1731904791891,0.12549,241.08,241.0,9.90514192]
[1731904792401,0.12549,241.08,241.0,6.34677109]
[1731904794010,4.27359,241.08,241.0,10.49597109]
[1731904794206,4.27359,241.08,241.0,4.1492]
[1731904794509,6.34677109,241.07,241.0,4.1492]
[1731904794810,36.34677109,241.07,241.0,4.1492]
[1731904795023,36.34677109,241.07,241.0,6.34677109]
[1731904795189,0.12549,241.06,240.98,10.3742]
[1731904795389,6.34677109,241.05,240.98,14.5238]
[1731904795589,6.47226109,241.06,240.98,20.87057109]
[1731904796794,6.47226109,241.06,240.98,10.3742]
[1731904796994,6.47226109,241.06,240.99,6.34677109]
[1731904797197,0.12549,241.06,240.99,6.34677109]
[1731904797411,6.34677109,241.06,240.99,6.34677109]
[1731904798309,6.34677109,241.07,240.99,6.34677109]
[1731904798703,6.34677109,241.06,240.99,6.34677109]
[1731904799006,6.34677109,241.06,241.0,4.1493]
[1731904799824,6.34677109,241.01,240.9,20.7548]
[1731904799992,6.34677109,240.92,240.84,4.1521]
[1731904800317,0.12549,240.99,240.84,4.1521]
[1731904800614,0.21916462,240.98,240.84,4.1521]
[1731904800826,0.21916462,240.96,240.84,4.1521]
[1731904801018,0.12549,240.96,240.87,10.3788]
[1731904801326,6.34677109,240.9,240.87,10.3788]
[1731904802098,4.1495,240.99,240.87,10.3788]
[1731904802395,240.12948816,241.08,240.9,9.92948816]
[1731904802592,9.92948816,240.98,240.9,9.92948816]
[1731904802910,9.92948816,240.96,240.85,23.776884]
[1731904803224,9.92948816,241.0,240.92,9.92948816]
[1731904805226,9.92948816,241.0,240.94,9.92948816]
[1731904806914,9.92948816,241.02,240.95,14.5257]
[1731904808527,32.08178816,241.04,240.95,14.5257]
[1731904809037,40.32690535,241.04,240.95,14.5257]
[1731904809338,8.24511719,241.04,240.95,14.5257]
[1731904809515,18.17460535,241.04,240.95,14.5257]
[1731904809716,9.92948816,241.04,240.95,14.5257]
[1731904809919,9.92948816,241.02,240.95,14.5257]
[1731904812017,9.92948816,241.02,240.93,4.1505]
[1731904812217,9.92948816,241.0,240.93,4.1505]
[1731904812435,9.92948816,240.98,240.9,24.45808816]
[1731904812754,9.92948816,240.98,240.9,14.5286]
[1731904813048,9.92948816,240.96,240.87,9.92948816]
[1731904813342,14.07918816,240.98,240.89,9.92948816]
[1731904813721,9.92948816,240.94,240.85,9.92948816]
[1731904814941,14.07988816,240.94,240.86,4.1517]
[1731904815240,6.5947,240.97,240.89,9.92948816]
[1731904816044,9.92948816,240.98,240.89,9.92948816]
[1731904816720,18.16136981,240.98,240.89,9.92948816]
[1731904816922,8.23188165,240.98,240.91,9.92948816]
[1731904817122,9.92948816,240.98,240.9,14.5288]
[1731904817318,12.63060547,240.99,240.9,14.5288]
[1731904817533,9.92948816,240.98,240.9,14.5288]
[1731904817739,9.92948816,240.94,240.86,10.3794]
[1731904818847,24.87,240.87,240.65,36.406]
[1731904819023,24.87,240.87,240.7,9.92948816]
[1731904819024,9.92948816,240.79,240.7,9.92948816]
[1731904819352,0.16989,240.9,240.66,24.9313]
[1731904819353,9.92948816,240.85,240.75,9.92948816]
[1731904819649,22.2434,240.92,240.81,9.92948816]
[1731904819822,9.92948816,240.91,240.81,9.92948816]
[1731904820351,9.92948816,240.89,240.81,9.92948816]
[1731904820524,9.92948816,240.91,240.81,9.92948816]
[1731904820843,9.92948816,240.91,240.82,14.5335]
[1731904825147,4.1502,240.95,240.83,9.92948816]
[1731904825477,9.92948816,240.92,240.83,9.92948816]
[1731904825824,9.92948816,240.94,240.85,9.92948816]
[1731904826727,9.92948816,240.92,240.83,9.92948816]
[1731904827046,9.92948816,240.9,240.82,14.5335]
[1731904828457,6.35663916,240.91,240.82,14.5335]
[1731904829864,4.1506,240.93,240.82,6.35663916]
[1731904830062,6.35663916,240.91,240.82,6.35663916]
[1731904830231,4.1506,240.93,240.82,6.35663916]
[1731904830437,4.1506,240.93,240.79,6.35663916]
[1731904830632,6.35663916,240.85,240.77,14.5366]
[1731904830942,6.35663916,240.81,240.77,10.3833]
[1731904832255,9.93970135,240.81,240.77,10.3833]
[1731904832865,9.93970135,240.81,240.74,4.1538]
[1731904833035,9.93970135,240.76,240.71,10.3856]
[1731904833239,9.93970135,240.74,240.71,10.3856]
[1731904833553,9.93970135,240.76,240.71,10.3856]
[1731904833749,9.93970135,240.84,240.71,10.3856]
[1731904833750,9.93970135,240.74,240.71,10.3856]
[1731904834339,9.93970135,240.76,240.71,10.3856]
[1731904834679,9.93970135,240.78,240.71,10.3856]
[1731904835533,9.93970135,240.8,240.71,20.32530135]
[1731904835761,9.93970135,240.82,240.73,9.93970135]
[1731904836055,9.93970135,240.82,240.74,14.5384]
[1731904836431,9.93970135,240.8,240.74,14.5384]
[1731904836660,9.93970135,240.82,240.74,14.5384]
[1731904837459,4.1505,240.93,240.8,9.93970135]
[1731904837658,9.93970135,240.91,240.82,9.93970135]
[1731904837842,9.93970135,240.89,240.8,9.93970135]
[1731904838043,9.93970135,240.87,240.8,4.1526]
[1731904838452,9.93970135,240.89,240.8,24.47430135]
[1731904839160,9.93970135,240.91,240.8,24.47430135]
[1731904839565,14.09060135,240.91,240.8,24.47430135]
[1731904839742,9.93970135,240.89,240.8,24.47430135]
[1731904839943,9.93970135,240.87,240.8,14.5346]
[1731904840142,9.93970135,240.88,240.8,14.5346]
[1731904840557,9.93970135,240.88,240.8,24.47430135]
[1731904840747,9.93970135,240.9,240.8,24.47430135]
[1731904841063,9.93970135,240.88,240.8,14.5346]
[1731904841861,9.93970135,240.86,240.8,14.5346]
[1731904842367,9.93970135,240.82,240.72,9.93970135]
[1731904842550,9.93970135,240.8,240.72,9.93970135]
[1731904843636,9.93970135,240.8,240.73,14.539]
[1731904845662,9.93970135,240.78,240.73,10.385]
[1731904845862,4.1528,240.8,240.73,10.385]
[1731904846172,6.5172,240.82,240.73,10.385]
[1731904846173,9.93970135,240.78,240.73,10.385]
[1731904847872,6.5172,240.82,240.73,10.385]
[1731904848174,9.93970135,240.79,240.73,10.385]
[1731904848858,9.93970135,240.77,240.73,10.385]
[1731904849169,9.93970135,240.75,240.69,4.1547]
[1731904849371,9.93970135,240.75,240.69,14.5415]
[1731904850959,9.93970135,240.77,240.69,14.5415]
[1731904851160,9.93970135,240.79,240.71,9.93970135]
[1731904851358,9.93970135,240.81,240.72,14.5397]
[1731904851768,6.412,240.87,240.75,9.93970135]
[1731904851967,9.93970135,240.84,240.75,9.93970135]
[1731904852853,9.93970135,240.8,240.72,14.5397]
[1731904853055,9.93970135,240.78,240.72,14.5397]
[1731904853282,9.93970135,240.78,240.72,10.3855]
[1731904853661,9.93970135,240.76,240.72,10.3855]
[1731904854281,9.93970135,240.74,240.72,10.3855]
[1731904854784,9.93970135,240.74,240.67,14.5423]
[1731904854984,9.93970135,240.7,240.67,14.5423]
[1731904855395,9.93970135,240.7,240.67,10.3874]
[1731904857176,104.80970135,240.84,240.67,10.3874]
[1731904857177,4.1522,240.84,240.67,10.3874]
[1731904857357,9.93970135,240.75,240.68,23.776884]
[1731904857564,9.93970135,240.75,240.69,8.8868]
[1731904858657,9.93970135,240.77,240.69,8.8868]
[1731904861559,9.93970135,240.77,240.69,18.82650135]
[1731904862699,9.93970135,240.79,240.69,18.82650135]
[1731904863013,9.93970135,240.81,240.71,9.93970135]
[1731904863758,9.93970135,240.81,240.72,23.776884]
[1731904863993,9.93970135,240.81,240.73,9.93970135]
[1731904865288,9.93970135,240.81,240.74,14.5384]
[1731904866090,6.412,240.87,240.77,9.93970135]
[1731904866091,9.93970135,240.86,240.77,9.93970135]
[1731904866259,9.93970135,240.86,240.74,35.4076]
[1731904866260,9.93970135,240.86,240.79,9.93970135]
[1731904866465,9.93970135,240.86,240.77,9.93970135]
[1731904867088,9.93970135,240.86,240.78,23.776884]
[1731904867395,9.93970135,240.86,240.79,24.47500135]
[1731904867775,9.93970135,240.88,240.79,45.23990135]
[1731904868386,6.0018,240.93,240.79,45.23990135]
[1731904868387,9.93970135,240.9,240.81,9.93970135]
[1731904868564,9.93970135,240.92,240.83,9.93970135]
[1731904868765,9.93970135,240.92,240.84,23.776884]
[1731904868972,9.93970135,240.94,240.86,9.93970135]
[1731904869196,8.28417357,240.98,240.93,14.5269]
[1731904869696,9.93970135,241.04,240.96,9.93970135]
[1731904870270,6.0018,241.1,240.93,35.3798]
[1731904870271,9.93970135,241.0,240.93,14.5269]
[1731904870799,9.93970135,240.96,240.93,14.5269]
[1731904870965,9.93970135,240.96,240.86,16.488]
[1731904870966,9.93970135,240.94,240.86,9.93970135]
[1731904871166,15.8927,241.0,240.84,6.0779]
[1731904871167,9.93970135,240.92,240.87,10.3787]
[1731904871393,9.93970135,240.94,240.87,20.31840135]
[1731904871895,9.93970135,240.92,240.87,10.3787]
[1731904872078,9.93970135,240.94,240.87,10.3787]
[1731904872274,20.0421,241.0,240.87,10.3787]
[1731904872478,9.93970135,240.92,240.87,10.3787]
[1731904873271,9.93970135,240.94,240.87,10.3787]
[1731904873480,9.93970135,240.96,240.87,20.31840135]
[1731904873680,9.93970135,240.94,240.87,10.3787]
[1731904874768,15.8927,241.0,240.87,10.3787]
[1731904874972,9.93970135,240.94,240.87,10.3787]
[1731904876177,9.93970135,240.97,240.88,9.93970135]
[1731904877402,9.93970135,240.95,240.87,10.3787]
[1731904877577,9.93970135,240.95,240.87,20.31840135]
[1731904877898,9.93970135,240.97,240.87,24.47000135]
[1731904879378,9.93970135,240.97,240.89,9.93970135]
[1731904879888,9.93970135,240.99,240.91,9.93970135]
[1731904880081,15.8927,241.06,240.93,9.93970135]
[1731904880396,9.93970135,241.02,240.93,9.93970135]
[1731904881092,9.93970135,241.02,240.94,14.5264]
[1731904881477,9.93970135,241.0,240.94,14.5264]
[1731904883307,9.93970135,241.0,240.94,10.376]
[1731904884204,9.93970135,241.02,240.94,10.376]
[1731904884701,8.10498579,241.06,240.99,9.93970135]
[1731904885085,9.93970135,241.06,240.97,9.93970135]
[1731904885284,4.1477,241.1,240.98,14.524]
[1731904885520,9.93970135,241.05,240.98,14.524]
[1731904885799,4.1477,241.1,240.98,14.524]
[1731904886001,9.93970135,241.05,240.98,14.524]
[1731904886382,9.93970135,241.05,240.98,10.3743]
[1731904886800,4.1477,241.1,240.98,10.3743]
[1731904886996,9.93970135,241.05,240.98,10.3743]
[1731904889110,8.32821449,241.1,240.98,10.3743]
[1731904889300,9.93970135,241.06,240.98,10.3743]
[1731904889502,9.93970135,241.04,240.98,10.3743]
[1731904889889,9.93970135,240.99,240.98,10.3743]
[1731904890688,9.93970135,241.01,240.98,10.3743]
[1731904891095,9.93970135,241.01,240.92,35.2812]
[1731904891316,9.93970135,241.01,240.93,9.93970135]
[1731904891609,9.93970135,241.01,240.94,23.776884]
[1731904892203,4.1475,241.11,240.95,9.93970135]
[1731904892405,9.93970135,241.04,240.95,9.93970135]
[1731904892914,33.06575195,241.13,240.97,9.93970135]
[1731904892915,9.93970135,241.06,240.97,9.93970135]
[1731904893324,4.1474,241.12,240.98,14.524]
[1731904893618,9.93970135,241.06,240.98,14.524]
[1731904894510,9.93970135,241.04,240.98,14.524]
[1731904895529,9.93970135,241.04,240.98,10.3743]
[1731904897314,9.93970135,241.0,240.98,10.3743]
[1731904897519,9.93970135,241.0,240.92,20.7537]
[1731904898428,9.93970135,241.0,240.92,30.69340135]
[1731904898801,9.93970135,241.02,240.93,23.776884]
[1731904899001,9.93970135,240.98,240.91,14.5282]
[1731904899719,9.93970135,240.98,240.91,10.3773]
[1731904900604,9.93970135,241.03,240.95,9.93970135]
[1731904900826,9.93970135,241.03,240.92,20.0]
[1731904900827,9.93970135,241.01,240.91,20.31700135]
[1731904901021,9.93970135,241.01,240.92,20.0]
[1731904901305,9.93970135,240.99,240.91,10.3773]
[1731904901504,4.1476,241.1,240.91,20.31700135]
[1731904901818,9.93970135,241.01,240.91,20.31700135]
[1731904902017,0.34465462,241.09,240.93,9.93970135]
[1731904902205,9.93970135,241.02,240.93,9.93970135]
[1731904902801,0.12549,241.09,240.94,14.5264]
[1731904903020,46.5555,241.11,240.94,14.5264]
[1731904903021,9.93970135,241.04,240.94,35.2784]
[1731904905641,7.03716469,241.16,241.03,9.93970135]
[1731904905927,7.03716469,241.16,240.96,25.77160135]
[1731904905928,6.3211,241.16,241.05,9.93970135]
[1731904906124,9.93970135,241.16,241.07,9.93970135]
[1731904906328,9.93970135,241.18,241.07,9.93970135]
[1731904906518,9.93970135,241.18,241.09,9.93970135]
[1731904907103,9.93970135,241.2,241.11,9.93970135]
[1731904907312,9.93970135,241.18,241.09,9.93970135]
[1731904907732,9.93970135,241.18,241.1,14.5167]
[1731904909935,9.93970135,241.12,241.08,4.1479]
[1731904910523,9.93970135,241.12,241.06,4.1482]
[1731904911033,9.93970135,241.12,241.06,14.519]
[1731904911811,9.87925135,241.12,241.06,14.519]
[1731904913844,30.0,241.11,241.06,14.519]
[1731904914169,30.0,241.11,241.0,14.5225]
[1731904914170,9.93970135,241.08,241.0,14.5225]
[1731904915331,6.6172,241.15,241.01,9.93970135]
[1731904915332,9.93970135,241.1,241.01,9.93970135]
[1731904915555,9.93970135,241.1,241.0,14.5225]
[1731904915734,9.93970135,241.1,241.01,9.93970135]
[1731904916324,9.93970135,241.1,241.02,14.5215]
[1731904916726,9.93970135,241.12,241.03,9.93970135]
[1731904916931,9.93970135,241.13,241.03,9.93970135]
[1731904917231,9.93970135,241.15,241.05,9.93970135]
[1731904917748,9.93970135,241.15,241.07,9.93970135]
[1731904917921,9.93970135,241.17,241.09,9.93970135]
[1731904918514,9.93970135,241.19,241.1,14.5167]
[1731904919135,9.93970135,241.21,241.13,9.93970135]
[1731904919362,6.6172,241.26,241.15,9.93970135]
[1731904919513,9.93970135,241.24,241.15,9.93970135]
[1731904919710,9.93970135,241.24,241.17,9.93970135]
[1731904920313,9.93970135,241.26,241.17,9.93970135]
[1731904920545,9.93970135,241.26,241.18,14.5119]
[1731904920918,6.6172,241.32,241.18,14.5119]
[1731904921228,9.93970135,241.27,241.18,14.5119]
[1731904921533,9.93970135,241.21,241.18,14.5119]
[1731904921736,9.93970135,241.19,241.13,10.3677]
[1731904922045,9.93970135,241.16,241.13,10.3677]
[1731904922539,9.93970135,241.18,241.13,10.3677]
[1731904922936,9.93970135,241.2,241.13,10.3677]
[1731904924127,9.93970135,241.24,241.15,9.93970135]
[1731904924316,9.93970135,241.26,241.17,9.93970135]
[1731904924519,4.1443,241.3,241.13,10.3677]
[1731904924520,9.93970135,241.19,241.13,10.3677]
[1731904927143,9.93970135,241.23,241.14,9.93970135]
[1731904928357,9.93970135,241.23,241.15,14.5136]
[1731904929355,9.93970135,241.21,241.15,14.5136]
[1731904929568,9.93970135,241.23,241.15,14.5136]
[1731904929747,9.93970135,241.27,241.18,9.93970135]
[1731904929934,9.93970135,241.31,241.22,9.93970135]
[1731904930344,9.93970135,241.31,241.23,14.5089]
[1731904932459,9.93970135,241.33,241.25,14.5076]
[1731904932833,9.93970135,241.33,241.25,10.3626]
[1731904933036,9.93970135,241.27,241.2,10.3646]
[1731904933252,164.68079772,241.33,241.2,10.3646]
[1731904933560,9.93970135,241.26,241.2,10.3646]
[1731904934068,9.93970135,241.32,241.16,14.08630135]
[1731904934069,9.93970135,241.22,241.16,4.1466]
[1731904934362,9.93970135,241.22,241.15,10.3668]
[1731904934662,4.1448,241.27,241.15,10.3668]
[1731904934864,9.93970135,241.24,241.16,9.93970135]
[1731904936341,9.93970135,241.24,241.17,14.5125]
[1731904937359,4.88612355,241.33,241.17,14.5125]
[1731904937360,19.4461,241.36,241.23,9.93970135]
[1731904937667,19.4461,241.36,241.17,24.45220135]
[1731904937668,9.93970135,241.26,241.17,24.45220135]
[1731904938266,9.93970135,241.28,241.19,9.93970135]
[1731904938447,160.2,241.34,241.2,14.5107]
[1731904938448,9.93970135,241.26,241.2,14.5107]
[1731904938767,9.93970135,241.26,241.2,10.3648]
[1731904939348,9.93970135,241.24,241.2,10.3648]
[1731904939665,9.93970135,241.24,241.18,4.1461]
[1731904940166,9.93970135,241.24,241.15,20.30650135]
[1731904940363,9.93970135,241.2,241.15,10.3668]
[1731904940566,9.93970135,241.18,241.15,10.3668]
[1731904941167,9.93970135,241.18,241.12,4.1473]
[1731904942143,9.93970135,241.21,241.12,14.5155]
[1731904942463,15.84993732,241.22,241.13,15.84993732]
[1731904942773,15.84993732,241.22,241.14,14.5143]
[1731904944845,15.84993732,241.25,241.16,15.84993732]
[1731904945261,15.84993732,241.27,241.18,15.84993732]
[1731904946155,15.84993732,241.27,241.19,14.5113]
[1731904947649,15.84993732,241.29,241.2,15.84993732]
[1731904948561,15.84993732,241.27,241.19,14.5113]
[1731904951348,4.1444,241.29,241.19,14.5113]
[1731904951349,15.84993732,241.29,241.2,15.84993732]
[1731904951564,15.84993732,241.31,241.22,15.84993732]
[1731904952964,15.84993732,241.29,241.2,15.84993732]
[1731904953454,15.84993732,241.23,241.16,19.99653732]
[1731904953656,15.84993732,241.23,241.16,4.1466]
[1731904954765,15.34993732,241.23,241.16,14.5131]
[1731904954979,4.145,241.25,241.16,30.36303732]
[1731904955284,15.84993732,241.28,241.2,15.84993732]
[1731904955578,15.84993732,241.27,241.18,15.84993732]
[1731904955747,15.84993732,241.25,241.18,15.84993732]
[1731904956879,19.99503732,241.25,241.18,4.1462]
[1731904957753,15.84993732,241.25,241.18,4.1462]
[1731904958156,15.84993732,241.25,241.18,19.99613732]
[1731904959467,15.84993732,241.27,241.18,30.36183732]
[1731904960568,15.84993732,241.25,241.18,14.5119]
[1731904963569,0.12549,241.27,241.18,14.5119]
[1731904963761,15.84993732,241.25,241.18,14.5119]
[1731904964378,9.90380901,241.25,241.18,14.5119]
[1731904964961,4.27019,241.27,241.14,9.90380901]
[1731904964962,9.90380901,241.23,241.14,9.90380901]
[1731904965165,9.90380901,241.19,241.13,10.3674]
[1731904965483,9.90380901,241.19,241.13,14.5145]
[1731904967390,9.90380901,241.21,241.13,14.5145]
[1731904970587,9.90380901,241.14,241.08,14.5176]
[1731904970971,9.90380901,241.16,241.08,14.5176]
[1731904971882,9.90380901,241.12,241.03,10.3719]
[1731904972060,9.90380901,241.1,241.03,10.3719]
[1731904972885,9.90380901,241.08,241.0,30.35320901]
[1731904973589,9.90380901,241.06,241.0,4.1492]
[1731904973778,9.90380901,241.06,240.98,20.27790901]
[1731904974089,9.90380901,241.06,240.98,24.42750901]
[1731904974473,9.90380901,241.04,240.98,14.5237]
[1731904974686,9.90380901,241.0,240.92,10.3764]
[1731904974896,9.90380901,240.98,240.92,14.5271]
[1731904976367,0.12549,240.95,240.87,20.28280901]
[1731904977492,9.90380901,240.96,240.89,9.90380901]
[1731904977662,9.90380901,240.98,240.89,9.90380901]
[1731904977864,0.12549,240.97,240.89,9.90380901]
[1731904978264,9.90380901,240.98,240.89,9.90380901]
[1731904979062,6.4645,241.01,240.93,9.90380901]
[1731904979284,9.90380901,241.03,240.95,9.90380901]
[1731904979503,0.09367462,241.02,240.95,9.90380901]
[1731904979865,9.90380901,241.01,240.93,9.90380901]
[1731904980192,0.09367462,240.98,240.9,14.5288]
[1731904980494,0.21916462,240.98,240.9,14.5288]
[1731904981388,9.90380901,241.03,240.93,9.90380901]
[1731904981594,9.90380901,241.03,240.95,9.90380901]
[1731904981783,16.36830901,241.07,240.97,9.90380901]
[1731904982471,6.4645,241.07,240.97,9.90380901]
[1731904982997,9.90380901,241.06,240.97,9.90380901]
[1731904983166,9.90380901,241.06,240.98,4.1497]
[1731904983370,0.21916462,241.05,240.97,14.05350901]
[1731904983975,9.90380901,241.06,240.97,24.42820901]
[1731904984176,6.4645,241.07,240.99,9.90380901]
[1731904985381,6.4645,241.07,241.0,4.1493]
[1731904985699,9.90380901,241.1,241.01,9.90380901]
[1731904986083,6.1539,241.13,241.08,9.90380901]
[1731904986400,25.58895325,241.2,241.0,35.2695]
[1731904986401,4.1455,241.23,241.12,9.90380901]
[1731904986605,0.09367462,241.21,241.12,9.90380901]
[1731904986893,9.90380901,241.22,241.12,9.90380901]
[1731904987476,9.90380901,241.22,241.13,4.1471]
[1731904987793,13.0949538,241.24,241.16,9.90380901]
[1731904988097,6.9410538,241.24,241.16,9.90380901]
[1731904988282,6.9410538,241.24,241.17,15.84465207]
[1731904989000,6.9410538,241.24,241.13,14.5149]
[1731904989001,6.1539,241.3,241.22,15.84465207]
[1731904989298,15.84465207,241.31,241.23,15.84465207]
[1731904989493,15.84465207,241.29,241.21,15.84465207]
[1731904990001,0.09367462,241.28,241.19,15.84465207]
[1731904990493,0.09367462,241.28,241.14,14.5143]
[1731904990494,15.84465207,241.27,241.2,4.1459]
[1731904990674,15.84465207,241.27,241.14,10.3674]
[1731904990675,0.34465462,241.21,241.14,10.3674]
[1731904990871,15.84465207,241.19,241.14,14.5143]
[1731904991176,15.84465207,241.23,241.15,15.84465207]
[1731904991375,15.84465207,241.25,241.15,15.84465207]
[1731904991596,0.12549,241.24,241.17,15.84465207]
[1731904991796,15.84465207,241.27,241.17,15.84465207]
[1731904992011,15.84465207,241.27,241.19,15.84465207]
[1731904992579,15.84465207,241.27,241.2,4.1459]
[1731904992978,0.12549,241.26,241.2,4.1459]
[1731904994507,0.12549,241.26,241.19,10.365]
[1731904994678,15.84465207,241.27,241.19,26.20965207]
[1731904994874,15.84465207,241.29,241.21,15.84465207]
[1731904995901,15.84465207,241.29,241.22,14.5094]
[1731904999298,15.84465207,241.31,241.22,30.35405207]
[1731904999507,15.84465207,241.33,241.24,15.84465207]
[1731905000109,15.84465207,241.33,241.25,14.5076]
[1731905002196,15.84465207,241.33,241.25,30.35225207]
[1731905002399,15.84465207,241.35,241.27,15.84465207]
[1731905002710,15.84465207,241.36,241.27,15.84465207]
[1731905003822,15.84465207,241.38,241.29,15.84465207]
[1731905004393,6.3962,241.41,241.28,14.5059]
[1731905004394,15.84465207,241.36,241.28,14.5059]
[1731905006406,15.84465207,241.37,241.28,14.5059]
[1731905007526,15.84465207,241.35,241.28,14.5059]
[1731905008308,9.89452929,241.35,241.28,14.5059]
[1731905010312,0.25098,241.41,241.29,9.89452929]
[1731905010484,9.89452929,241.37,241.29,9.89452929]
[1731905011211,9.89452929,241.37,241.3,14.5047]
[1731905014401,9.89452929,241.33,241.3,14.5047]
[1731905014711,9.89452929,241.35,241.3,14.5047]
[1731905015090,0.25098,241.42,241.3,14.5047]
[1731905015290,9.89452929,241.37,241.3,14.5047]
[1731905016012,9.89452929,241.44,241.3,14.5047]
[1731905016013,9.89452929,241.31,241.3,14.5047]
[1731905017290,4.26779,241.41,241.24,20.7262]
[1731905017291,9.89452929,241.33,241.25,9.89452929]
[1731905017887,9.89452929,241.33,241.24,20.7262]
[1731905018498,9.89452929,241.29,241.24,14.5083]
[1731905019507,9.89452929,241.29,241.24,10.3631]
[1731905019692,9.89452929,241.34,241.25,9.89452929]
[1731905020090,9.89452929,241.36,241.27,9.89452929]
[1731905021191,9.89452929,241.34,241.28,14.5059]
[1731905026515,9.89452929,241.3,241.28,10.3614]
[1731905027109,9.89452929,241.32,241.28,14.5059]
[1731905027514,9.89452929,241.3,241.22,20.7279]
[1731905027701,9.89452929,241.28,241.21,14.5101]
[1731905027905,6.4185,241.34,241.21,14.5101]
[1731905027906,9.89452929,241.26,241.21,14.5101]
[1731905028108,9.89452929,241.24,241.16,20.733]
[1731905028308,9.89452929,241.24,241.17,4.1463]
[1731905029000,9.89452929,241.22,241.17,4.1463]
[1731905029204,9.89452929,241.22,241.17,14.5124]
[1731905029400,4.1437,241.33,241.21,9.89452929]
[1731905029596,14.03822929,241.33,241.25,9.89452929]
[1731905030418,9.89452929,241.28,241.22,10.3639]
[1731905030619,9.89452929,241.26,241.19,9.89452929]
[1731905030794,9.89452929,241.26,241.19,14.04062929]
[1731905030995,9.89452929,241.26,241.19,4.1461]
[1731905031212,0.25098,241.31,241.19,14.5113]
[1731905031501,9.89452929,241.22,241.15,15.6065]
[1731905031904,9.89452929,241.22,241.15,30.12]
[1731905032109,15.7898,241.28,241.17,9.89452929]
[1731905032316,9.89452929,241.3,241.21,9.89452929]
[1731905032512,9.89452929,241.3,241.22,4.1455]
[1731905033109,9.89452929,241.3,241.22,14.5094]
[1731905034210,9.89452929,241.29,241.22,14.5094]